bitfinex/quotes_SOLUSD_20241214
["timestamp","ask_amount","ask_price","bid_price","bid_amount"]
[1734205240118,20.0,217.96,217.85,8.88115212]
[1734205240328,1.6291,217.97,217.89,8.88115212]
[1734205241600,20.0,217.96,217.89,8.88115212]
[1734205241794,20.0,217.96,217.88,8.88115212]
[1734205243909,20.0,217.96,217.89,8.88115212]
[1734205244837,20.0,217.96,217.9,8.88115212]
[1734205247536,20.0,217.96,217.91,8.88115212]
[1734205250036,20.0,217.96,217.9,8.88115212]
[1734205255112,20.0,217.96,217.83,0.12549]
[1734205255319,20.0,217.96,217.87,8.88115212]
[1734205256231,20.0,217.96,217.84,30.0]
[1734205256419,20.0,217.96,217.85,8.88115212]
[1734205256624,20.0,217.96,217.86,8.88115212]
[1734205258534,20.0,217.96,217.87,8.88115212]
[1734205259752,20.0,217.96,217.88,8.88115212]
[1734205263171,20.0,217.96,217.91,8.88115212]
[1734205263461,1.6291,217.97,217.93,8.88115212]
[1734205265157,20.0,217.96,217.93,8.88115212]
[1734205265333,20.0,217.96,217.85,0.68825463]
[1734205265334,20.0,217.96,217.92,8.88115212]
[1734205268033,0.445145,217.98,217.93,8.88115212]
[1734205268364,0.445145,217.98,217.95,8.88115212]
[1734205268543,0.445145,217.98,217.96,8.88115212]
[1734205269042,0.445145,217.98,217.95,8.88115212]
[1734205270038,0.445145,217.98,217.94,8.88115212]
[1734205274260,0.445145,217.98,217.95,8.88115212]
[1734205274564,0.445145,217.98,217.96,8.88115212]
[1734205275661,0.445145,217.98,217.9,0.12549]
[1734205275662,0.445145,217.98,217.95,8.88115212]
[1734205278174,0.445145,217.98,217.96,8.88115212]
[1734205278873,0.445145,217.98,217.97,8.88115212]
[1734205284072,0.445145,217.98,217.96,8.88115212]
[1734205284479,0.445145,217.98,217.95,8.88115212]
[1734205285179,0.445145,217.98,217.96,8.88115212]
[1734205285754,0.445145,217.98,217.97,8.88115212]
[1734205304794,0.445145,217.98,217.82,1.5667]
[1734205304795,20.0,217.97,217.82,1.5667]
[1734205305093,20.0,217.96,217.82,10.44785212]
[1734205305310,20.0,217.92,217.79,6.0282]
[1734205305479,20.0,217.92,217.85,8.88115212]
[1734205305882,20.0,217.97,217.85,8.88115212]
[1734205306069,20.445145,217.98,217.85,8.88115212]
[1734205306685,20.445145,217.98,217.86,8.88115212]
[1734205308207,20.445145,217.98,217.87,8.88115212]
[1734205310902,0.445145,217.98,217.93,8.88115212]
[1734205311407,0.445145,217.98,217.92,8.88115212]
[1734205312196,20.445145,217.98,217.92,8.88115212]
[1734205312982,20.445145,217.98,217.91,8.88115212]
[1734205313573,20.445145,217.98,217.92,8.88115212]
[1734205314587,20.445145,217.98,217.91,8.88115212]
[1734205315385,20.445145,217.98,217.92,8.88115212]
[1734205316984,20.445145,217.98,217.91,8.88115212]
[1734205317495,20.445145,217.98,217.92,8.88115212]
[1734205319581,0.445145,217.98,217.92,8.88115212]
[1734205321817,0.445145,217.98,217.93,8.88115212]
[1734205322195,0.445145,217.98,217.92,8.88115212]
[1734205322908,0.445145,217.98,217.93,8.88115212]
[1734205325996,0.445145,217.98,217.92,8.88115212]
[1734205328390,0.445145,217.98,217.95,8.88115212]
[1734205329797,0.445145,217.98,217.96,8.88115212]
[1734205331519,0.445145,217.98,217.95,8.88115212]
[1734205332098,0.445145,217.98,217.94,8.88115212]
[1734205334918,0.445145,217.98,217.95,8.88115212]
[1734205335915,0.445145,217.98,217.94,8.88115212]
[1734205336297,0.445145,217.98,217.92,8.88115212]
[1734205338125,0.445145,217.98,217.87,6.0282]
[1734205338417,0.445145,217.98,217.9,8.88115212]
[1734205339792,0.445145,217.98,217.91,8.88115212]
[1734205341296,0.445145,217.98,217.9,8.88115212]
[1734205341908,0.445145,217.98,217.91,8.88115212]
[1734205343508,0.445145,217.98,217.88,24.027864]
[1734205343733,0.445145,217.98,217.9,8.88115212]
[1734205348327,0.445145,217.98,217.88,0.25098]
[1734205348527,0.445145,217.98,217.88,9.13213212]
[1734205357930,0.445145,217.98,217.92,8.88115212]
[1734205358137,0.445145,217.98,217.93,8.88115212]
[1734205359029,0.445145,217.98,217.89,11.4736]
[1734205359030,0.445145,217.98,217.97,9.13213212]
[1734205359743,0.445145,217.98,217.96,8.88115212]
[1734205359914,0.445145,217.98,217.96,0.12549]
[1734205362926,0.445145,217.98,217.97,8.88115212]
[1734205363135,0.445145,217.98,217.97,9.13213212]
[1734205371039,0.445145,217.98,217.97,32.90901612]
[1734205371549,0.445145,217.98,217.97,62.90901612]
[1734205376343,0.445145,217.98,217.97,32.90901612]
[1734205378849,0.445145,217.98,217.94,0.68804523]
[1734205379145,0.445145,217.98,217.96,8.88115212]
[1734205379359,0.445145,217.98,217.97,30.0]
[1734205379647,0.445145,217.98,217.96,8.88115212]
[1734205379820,0.445145,217.98,217.94,0.12549]
[1734205380217,0.445145,217.98,217.95,8.88115212]
[1734205380420,0.445145,217.98,217.96,8.88115212]
[1734205380829,0.445145,217.98,217.97,9.13213212]
[1734205381034,0.445145,217.98,217.97,32.90901612]
[1734205382630,0.445145,217.98,217.97,62.90901612]
[1734205382939,0.445145,217.98,217.97,30.25098]
[1734205383318,0.445145,217.98,217.96,8.88115212]
[1734205383633,0.445145,217.98,217.96,0.12549]
[1734205384523,0.445145,217.98,217.96,0.25098]
[1734205384845,0.445145,217.98,217.94,9.00664212]
[1734205385018,0.445145,217.98,217.94,0.25098]
[1734205385219,0.445145,217.98,217.88,0.68812815]
[1734205385450,0.445145,217.98,217.9,8.88115212]
[1734205385636,0.445145,217.98,217.92,8.88115212]
[1734205386447,0.445145,217.98,217.93,0.12549]
[1734205387026,0.445145,217.98,217.91,9.13213212]
[1734205395839,0.445145,217.98,217.91,9.82031946]
[1734205396760,0.445145,217.98,217.91,9.13213212]
[1734205397128,0.445145,217.98,217.93,0.12549]
[1734205398859,0.445145,217.98,217.94,9.56932349]
[1734205399361,0.445145,217.98,217.93,9.13213212]
[1734205399754,0.445145,217.98,217.93,0.25098]
[1734205413866,0.445145,217.98,217.95,0.12549]
[1734205414073,0.445145,217.98,217.95,0.25098]
[1734205418462,0.445145,217.98,217.95,9.13213212]
[1734205422166,0.445145,217.98,217.97,0.12549]
[1734205424393,0.445145,217.98,217.92,23.776884]
[1734205424590,0.445145,217.98,217.94,8.88115212]
[1734205424896,0.445145,217.98,217.95,9.00664212]
[1734205430194,0.445145,217.98,217.96,8.88115212]
[1734205430500,0.445145,217.98,217.94,0.25098]
[1734205430691,0.445145,217.98,217.95,8.88115212]
[1734205431293,0.445145,217.98,217.96,8.88115212]
[1734205431492,0.445145,217.98,217.97,9.00664212]
[1734205431685,0.445145,217.98,217.97,9.13213212]
[1734205440995,0.445145,217.98,217.97,39.13213212]
[1734205441503,0.445145,217.98,217.97,9.13213212]
[1734205444485,0.445145,217.98,217.97,39.13213212]
[1734205446818,0.445145,217.98,217.97,30.0]
[1734205447889,0.445145,217.98,217.96,0.12549]
[1734205451314,0.445145,217.98,217.97,9.13213212]
[1734205453508,0.445145,217.98,217.93,8.88115212]
[1734205453682,0.445145,217.98,217.87,1.6272]
[1734205453683,0.445145,217.98,217.9,15.25695212]
[1734205453884,0.445145,217.98,217.9,8.88115212]
[1734205454084,0.445145,217.98,217.91,0.12549]
[1734205454503,0.445145,217.98,217.9,8.88115212]
[1734205455011,0.445145,217.98,217.95,0.12549]
[1734205455216,0.445145,217.98,217.95,9.13213212]
[1734205455979,0.445145,217.98,217.95,0.25098]
[1734205456204,0.445145,217.98,217.95,9.13213212]
[1734205457420,0.445145,217.98,217.97,0.12549]
[1734205457588,0.445145,217.98,217.97,0.25098]
[1734205458090,0.445145,217.98,217.97,0.12549]
[1734205461697,0.445145,217.98,217.89,0.68800711]
[1734205461910,20.445145,217.98,217.9,30.0]
[1734205462594,20.0,217.96,217.9,30.0]
[1734205462800,20.0,217.96,217.86,0.12549]
[1734205462997,20.0,217.96,217.86,0.25098]
[1734205463202,20.0,217.96,217.86,24.027864]
[1734205463516,20.0,217.96,217.88,0.25098]
[1734205465298,20.0,217.96,217.87,0.25098]
[1734205470135,20.0,217.96,217.87,0.12549]
[1734205470304,20.0,217.96,217.85,0.12549]
[1734205470498,20.0,217.96,217.86,0.25098]
[1734205474097,20.0,217.96,217.86,0.12549]
[1734205474420,20.0,217.92,217.83,0.12549]
[1734205474624,20.0,217.92,217.82,30.12549]
[1734205475225,20.0,217.92,217.83,0.12549]
[1734205475802,20.0,217.92,217.82,0.25098]
[1734205476417,20.0,217.92,217.82,0.12549]
[1734205476619,20.0,217.92,217.82,0.25098]
[1734205476816,20.0,217.92,217.82,0.12549]
[1734205477523,20.0,217.92,217.79,8.88115212]
[1734205477825,20.0,217.92,217.8,0.12549]
[1734205478202,1.5671,217.91,217.8,0.12549]
[1734205478403,5.7869489,217.91,217.79,0.12549]
[1734205478700,20.0,217.88,217.79,24.027864]
[1734205480099,21.5119,217.84,217.68,7.8049]
[1734205480295,21.5119,217.84,217.71,30.0]
[1734205480500,21.5119,217.84,217.72,8.88115212]
[1734205480927,21.5119,217.84,217.73,0.12549]
[1734205481427,21.5119,217.84,217.73,30.12549]
[1734205481818,21.5119,217.84,217.74,0.12549]
[1734205483318,21.5119,217.84,217.73,0.12549]
[1734205483903,21.5119,217.84,217.75,0.12549]
[1734205484227,21.5119,217.84,217.75,32.90901612]
[1734205484619,21.5119,217.84,217.75,24.027864]
[1734205485402,20.0,217.84,217.78,0.25098]
[1734205485709,4.27222701,217.88,217.8,0.25098]
[1734205485908,1.5119,217.89,217.8,0.25098]
[1734205487235,21.5119,217.89,217.8,0.25098]
[1734205488237,21.5119,217.89,217.74,20.0]
[1734205488428,21.5119,217.89,217.76,23.776884]
[1734205489431,21.5119,217.89,217.77,0.25098]
[1734205494615,21.5119,217.89,217.77,9.13213212]
[1734205495733,21.5119,217.89,217.77,0.25098]
[1734205496043,21.5119,217.89,217.77,9.13213212]
[1734205497836,21.5119,217.89,217.79,0.12549]
[1734205498047,21.5119,217.89,217.79,0.25098]
[1734205499840,21.5119,217.89,217.79,24.027864]
[1734205500046,21.5119,217.89,217.81,0.12549]
[1734205500230,21.5119,217.89,217.82,0.25098]
[1734205501318,21.5119,217.89,217.8,0.25098]
[1734205503140,21.5119,217.89,217.8,9.13213212]
[1734205504122,21.5119,217.89,217.8,0.25098]
[1734205504361,21.5119,217.89,217.8,9.13213212]
[1734205505051,1.5119,217.89,217.8,9.13213212]
[1734205505344,1.5119,217.89,217.82,9.13213212]
[1734205505641,6.1341,217.92,217.82,9.13213212]
[1734205506743,6.1341,217.92,217.84,9.13213212]
[1734205508048,6.1341,217.92,217.84,0.25098]
[1734205513148,6.1341,217.92,217.83,23.776884]
[1734205513650,6.1341,217.92,217.83,32.65803612]
[1734205515661,6.1341,217.92,217.83,23.776884]
[1734205516032,6.1341,217.92,217.83,32.65803612]
[1734205516226,1.6466,217.94,217.84,9.13213212]
[1734205516460,20.0,217.93,217.84,9.13213212]
[1734205517749,21.6466,217.94,217.84,9.13213212]
[1734205518051,21.6466,217.94,217.85,8.88115212]
[1734205518548,21.6466,217.94,217.86,32.90901612]
[1734205521159,6.2255,217.97,217.86,32.90901612]
[1734205521160,6.2255,217.97,217.88,9.13213212]
[1734205521366,6.2255,217.97,217.89,8.88115212]
[1734205521538,0.445145,217.98,217.91,8.88115212]
[1734205533156,0.445145,217.98,217.93,8.88115212]
[1734205533441,0.445145,217.98,217.95,8.88115212]
[1734205534665,0.445145,217.98,217.94,8.88115212]
[1734205543167,0.445145,217.98,217.97,24.027864]
[1734205543463,0.445145,217.98,217.97,33.5969883]
[1734205544352,0.445145,217.98,217.97,32.90901612]
[1734205547960,0.445145,217.98,217.97,62.90901612]
[1734205549372,0.445145,217.98,217.97,32.90901612]
[1734205551575,0.445145,217.98,217.93,0.12549]
[1734205551774,0.445145,217.98,217.93,30.0]
[1734205552368,0.445145,217.98,217.94,0.12549]
[1734205553164,0.445145,217.98,217.93,30.0]
[1734205553376,0.445145,217.98,217.9,8.88115212]
[1734205553560,0.445145,217.98,217.85,8.45058669]
[1734205553561,0.445145,217.98,217.89,0.12549]
[1734205553755,0.445145,217.98,217.91,0.12549]
[1734205554574,0.445145,217.98,217.91,23.902374]
[1734205560482,0.445145,217.98,217.86,0.12549]
[1734205560697,0.445145,217.98,217.89,32.78352612]
[1734205560895,0.445145,217.98,217.92,8.88115212]
[1734205563290,0.445145,217.98,217.94,8.88115212]
[1734205564887,0.445145,217.98,217.95,24.027864]
[1734205565085,0.445145,217.98,217.95,9.00664212]
[1734205566080,0.445145,217.98,217.96,8.88115212]
[1734205566409,0.445145,217.98,217.97,8.88115212]
[1734205567291,0.445145,217.98,217.97,32.90901612]
[1734205574126,0.445145,217.98,217.97,33.5969375]
[1734205574488,0.445145,217.98,217.97,24.71578538]
[1734205574714,0.445145,217.98,217.97,33.5969375]
[1734205575289,0.445145,217.98,217.97,63.5969375]
[1734205576106,0.445145,217.98,217.97,198.2969375]
[1734205576312,0.445145,217.98,217.97,197.60901612]
[1734205578227,0.445145,217.98,217.97,205.66801612]
[1734205579108,0.445145,217.98,217.97,219.42801612]
[1734205580297,0.445145,217.98,217.97,221.30018332]
[1734205580900,2.6700995,218.13,218.02,43.776884]
[1734205581100,2.6700995,218.13,218.07,8.88115212]
[1734205581302,2.6700995,218.13,218.06,8.88115212]
[1734205583523,2.6700995,218.13,218.07,8.88115212]
[1734205584201,2.6700995,218.13,218.03,24.027864]
[1734205584421,2.6700995,218.13,218.05,24.027864]
[1734205584630,20.0,218.12,218.04,30.0]
[1734205585001,20.0,218.12,218.04,0.25098]
[1734205585924,20.0,218.12,218.02,8.88115212]
[1734205587204,20.0,218.12,217.99,24.027864]
[1734205587403,20.0,218.12,218.02,8.88115212]
[1734205589451,20.0,218.12,217.94,0.68790254]
[1734205589738,20.0,218.12,217.92,9.60066337]
[1734205589739,20.0,218.08,217.96,8.88115212]
[1734205589913,20.0,218.08,217.97,0.12549]
[1734205590431,20.0,218.08,217.97,9.00664212]
[1734205592925,20.0,218.08,217.96,8.88115212]
[1734205594421,20.0,218.08,217.97,8.88115212]
[1734205598655,20.0,218.08,217.98,8.88115212]
[1734205598839,20.0,218.08,217.94,24.71589181]
[1734205598840,20.0,218.08,217.99,8.88115212]
[1734205599471,20.0,218.08,218.0,8.88115212]
[1734205600271,13.04440763,218.11,218.03,8.88115212]
[1734205600439,13.04440763,218.11,218.04,8.88115212]
[1734205600642,7.8843,218.11,218.02,8.88115212]
[1734205601050,7.8843,218.11,218.01,8.88115212]
[1734205601449,20.0,218.08,217.97,0.25098]
[1734205601771,20.0,218.08,217.97,54.027864]
[1734205601943,20.0,218.08,218.01,8.88115212]
[1734205602471,20.0,218.08,218.02,8.88115212]
[1734205605059,7.8843,218.11,218.02,8.88115212]
[1734205605250,20.0,218.08,218.02,8.88115212]
[1734205605667,20.0,218.08,217.99,24.027864]
[1734205605881,20.0,218.08,218.02,8.88115212]
[1734205608272,20.0,218.08,218.01,8.88115212]
[1734205608583,20.0,218.08,217.92,7.7552]
[1734205608759,20.0,218.08,217.99,8.88115212]
[1734205610364,20.0,218.08,218.0,8.88115212]
[1734205615974,20.0,218.08,218.03,8.88115212]
[1734205617274,20.0,218.08,218.02,8.88115212]
[1734205617462,20.0,218.08,218.01,8.88115212]
[1734205618585,20.0,218.08,218.02,8.88115212]
[1734205621365,20.0,218.08,218.01,8.88115212]
[1734205621890,20.0,218.08,218.02,8.88115212]
[1734205622881,20.0,218.08,218.03,8.88115212]
[1734205623082,7.8843,218.11,218.03,8.88115212]
[1734205623256,20.0,218.08,218.03,8.88115212]
[1734205623458,1.5363,218.11,218.04,8.88115212]
[1734205623670,1.5363,218.11,218.05,8.88115212]
[1734205624357,1.5363,218.11,218.04,8.88115212]
[1734205624558,1.5363,218.11,218.03,8.88115212]
[1734205626565,21.1438995,218.13,218.06,8.88115212]
[1734205626873,21.1438995,218.13,218.07,8.88115212]
[1734205627278,21.1438995,218.13,218.06,8.88115212]
[1734205628491,21.1438995,218.13,218.07,8.88115212]
[1734205628676,1.1438995,218.13,218.08,8.88115212]
[1734205629471,1.1438995,218.13,218.07,8.88115212]
[1734205630007,21.1438995,218.13,218.07,8.88115212]
[1734205631303,21.1438995,218.13,218.08,8.88115212]
[1734205632678,21.1438995,218.13,218.07,8.88115212]
[1734205633080,21.1438995,218.13,218.04,0.12549]
[1734205633479,21.1438995,218.13,218.06,8.88115212]
[1734205635088,21.1438995,218.13,218.07,8.88115212]
[1734205635665,21.1438995,218.13,218.08,8.88115212]
[1734205638496,21.1438995,218.13,218.07,8.88115212]
[1734205639193,21.1438995,218.13,218.06,8.88115212]
[1734205639891,21.1438995,218.13,218.07,8.88115212]
[1734205641603,21.1438995,218.13,218.06,8.88115212]
[1734205641891,21.1438995,218.13,218.02,8.88115212]
[1734205642495,21.1438995,218.13,218.03,8.88115212]
[1734205645977,21.1438995,218.13,217.98,24.027864]
[1734205646284,21.1438995,218.13,218.03,8.88115212]
[1734205649184,21.1438995,218.13,218.05,8.88115212]
[1734205649419,21.1438995,218.13,218.06,8.88115212]
[1734205652304,21.1438995,218.13,218.05,8.88115212]
[1734205653705,21.1438995,218.13,218.04,8.88115212]
[1734205653998,21.1438995,218.13,218.05,8.88115212]
[1734205654203,21.1438995,218.13,218.04,8.88115212]
[1734205660396,21.1438995,218.13,217.99,0.12549]
[1734205660617,21.5734,218.12,217.95,6.568]
[1734205660790,21.5734,218.12,217.99,8.88115212]
[1734205660791,26.73350763,218.12,217.99,8.88115212]
[1734205661492,26.73350763,218.12,218.0,8.88115212]
[1734205663193,26.73350763,218.12,217.99,8.88115212]
[1734205663708,20.0,218.08,217.94,1.558]
[1734205663887,25.16010763,218.08,217.96,8.88115212]
[1734205664307,25.16010763,218.08,217.97,8.88115212]
[1734205665211,25.16010763,218.08,217.94,1.558]
[1734205665416,25.16010763,218.08,217.97,8.88115212]
[1734205665900,20.0,218.04,217.95,0.25098]
[1734205666100,20.0,218.04,217.96,8.88115212]
[1734205666617,20.0,218.04,217.95,9.00664212]
[1734205668096,20.0,218.04,217.96,8.88115212]
[1734205671907,20.0,218.04,217.93,0.12549]
[1734205672106,20.0,218.04,217.96,8.88115212]
[1734205673313,20.0,218.04,217.97,8.88115212]
[1734205674401,20.0,218.04,217.96,8.88115212]
[1734205677104,20.0,218.04,217.97,8.88115212]
[1734205677305,20.0,218.04,217.98,8.88115212]
[1734205678236,6.73350763,218.07,218.01,8.88115212]
[1734205678402,6.3428,218.11,218.01,8.88115212]
[1734205679412,20.0,218.08,218.01,8.88115212]
[1734205680736,20.0,218.08,218.02,8.88115212]
[1734205681232,20.0,218.08,218.03,8.88115212]
[1734205681908,20.0,218.08,218.02,8.88115212]
[1734205684810,20.0,218.08,218.03,8.88115212]
[1734205685105,20.0,218.1,218.04,8.88115212]
[1734205686222,20.0,218.1,218.03,8.88115212]
[1734205686608,20.0,218.1,218.04,8.88115212]
[1734205688519,20.0,218.1,217.98,23.902374]
[1734205688721,20.0,218.1,218.06,8.88115212]
[1734205689027,21.1438995,218.13,218.06,8.88115212]
[1734205693228,21.1438995,218.13,218.08,8.88115212]
[1734205693733,21.1438995,218.13,218.06,8.88115212]
[1734205694334,21.1438995,218.13,218.04,24.027864]
[1734205694634,21.1438995,218.13,218.06,8.88115212]
[1734205695214,21.1438995,218.13,218.04,24.027864]
[1734205695414,21.1438995,218.13,218.06,8.88115212]
[1734205699923,21.1438995,218.13,218.04,24.027864]
[1734205700137,21.1438995,218.13,218.06,8.88115212]
[1734205700340,21.1438995,218.13,218.04,24.027864]
[1734205700546,21.1438995,218.13,218.05,8.88115212]
[1734205700931,1.1438995,218.13,218.06,8.88115212]
[1734205701252,1.1438995,218.13,218.07,8.88115212]
[1734205705533,1.1438995,218.13,218.08,8.88115212]
[1734205705842,1.1438995,218.13,218.09,8.88115212]
[1734205706046,1.1438995,218.13,218.1,8.88115212]
[1734205706430,1.1438995,218.13,218.12,8.88115212]
[1734205706927,1.1438995,218.13,218.04,31.09061886]
[1734205706928,1.1438995,218.13,218.11,8.88115212]
[1734205707346,1.1438995,218.13,218.12,8.88115212]
[1734205708630,1.1438995,218.13,218.12,9.13213212]
[1734205710444,1.1438995,218.13,218.12,76.4426246]
[1734205710653,1.1438995,218.13,218.12,106.4426246]
[1734205710834,1.1438995,218.13,218.12,70.91801612]
[1734205712432,1.1438995,218.13,218.12,64.54301612]
[1734205713939,1.1438995,218.13,218.12,30.25098]
[1734205714143,1.1438995,218.13,218.12,39.13213212]
[1734205716047,1.1438995,218.13,218.12,30.25098]
[1734205716246,1.1438995,218.13,218.12,39.13213212]
[1734205717257,1.1438995,218.13,218.12,9.13213212]
[1734205718156,1.1438995,218.13,218.12,8.88115212]
[1734205718831,1.1438995,218.13,218.07,8.009]
[1734205719150,1.1438995,218.13,218.08,38.88115212]
[1734205719370,1.1438995,218.13,218.08,30.0]
[1734205719931,1.1438995,218.13,218.06,8.88115212]
[1734205721336,1.1438995,218.13,218.08,8.88115212]
[1734205722234,1.1438995,218.13,218.1,8.88115212]
[1734205727146,1.1438995,218.13,218.09,8.88115212]
[1734205728555,1.1438995,218.13,218.12,8.88115212]
[1734205729148,1.1438995,218.13,218.12,32.90901612]
[1734205732358,1.1438995,218.13,218.12,62.90901612]
[1734205740157,1.1438995,218.13,218.12,98.4336246]
[1734205740473,1.1438995,218.13,218.12,62.90901612]
[1734205742275,1.1438995,218.13,218.12,98.4336246]
[1734205743469,1.1438995,218.13,218.12,30.0]
[1734205743772,1.1438995,218.13,218.12,38.88115212]
[1734205743945,1.1438995,218.13,218.12,8.88115212]
[1734205747282,1.1438995,218.13,218.06,0.12549]
[1734205747457,1.1438995,218.13,218.12,8.88115212]
[1734205751582,1.1438995,218.13,218.12,9.13213212]
[1734205757188,1.1438995,218.13,218.12,32.90901612]
[1734205757480,1.1438995,218.13,218.12,68.4336246]
[1734205758273,1.1438995,218.13,218.12,98.4336246]
[1734205767682,1.1438995,218.13,218.12,54.027864]
[1734205767870,1.1438995,218.13,218.12,39.00664212]
[1734205768069,1.1438995,218.13,218.12,30.0]
[1734205768369,1.1438995,218.13,218.12,8.88115212]
[1734205768577,1.1438995,218.13,218.12,9.00664212]
[1734205769777,1.1438995,218.13,218.12,9.13213212]
[1734205785918,1.1438995,218.13,218.12,9.00664212]
[1734205786539,1.1438995,218.13,218.06,23.902374]
[1734205786707,1.1438995,218.13,218.09,0.12549]
[1734205786915,1.1438995,218.13,218.1,8.88115212]
[1734205788133,1.1438995,218.13,218.11,8.88115212]
[1734205791320,1.1438995,218.13,218.09,0.25098]
[1734205791533,1.1438995,218.13,218.12,9.00664212]
[1734205791845,1.1438995,218.13,218.12,9.13213212]
[1734205792051,1.1438995,218.13,218.12,32.90901612]
[1734205792947,1.1438995,218.13,218.12,68.4336246]
[1734205793251,1.1438995,218.13,218.12,32.90901612]
[1734205793420,1.1438995,218.13,218.12,0.25098]
[1734205793632,1.1438995,218.13,218.12,62.90901612]
[1734205794337,1.1438995,218.13,218.12,39.13213212]
[1734205795754,1.1438995,218.13,218.12,9.13213212]
[1734205797345,1.1438995,218.13,218.12,39.13213212]
[1734205799330,1.1438995,218.13,218.12,30.25098]
[1734205799535,1.1438995,218.13,218.12,98.4336246]
[1734205800648,1.1438995,218.13,218.12,100.0334246]
[1734205801238,1.1438995,218.13,218.12,106.5794246]
[1734205804235,20.0,218.28,218.13,24.027864]
[1734205804536,20.0,218.28,218.21,8.88115212]
[1734205807754,20.0,218.28,218.13,54.027864]
[1734205807958,20.0,218.28,218.2,0.12549]
[1734205808456,20.0,218.27,218.16,8.88115212]
[1734205809060,20.0,218.27,218.17,8.88115212]
[1734205809362,20.0,218.27,218.18,8.88115212]
[1734205810335,20.0,218.27,218.19,0.12549]
[1734205810535,20.0,218.27,218.19,8.88115212]
[1734205811047,20.0,218.27,218.18,8.88115212]
[1734205811246,20.0,218.26,218.13,0.12549]
[1734205811461,20.0,218.26,218.16,8.88115212]
[1734205812867,20.0,218.27,218.17,9.00664212]
[1734205814676,20.0,218.28,218.17,9.00664212]
[1734205814877,20.0,218.27,218.17,9.00664212]
[1734205815863,20.0,218.28,218.17,9.00664212]
[1734205816054,20.0,218.27,218.17,9.00664212]
[1734205817278,20.0,218.27,218.18,8.88115212]
[1734205817980,20.0,218.28,218.18,8.88115212]
[1734205818185,20.0,218.28,218.18,0.12549]
[1734205818978,20.0,218.27,218.18,0.12549]
[1734205819694,20.0,218.28,218.18,0.12549]
[1734205819860,20.0,218.27,218.18,0.12549]
[1734205820769,20.0,218.27,218.08,3.47193901]
[1734205820770,20.0,218.22,218.03,151.51568125]
[1734205820978,20.0,218.22,218.14,8.88115212]
[1734205822787,20.0,218.22,218.08,0.12549]
[1734205822983,20.0,218.18,218.08,30.0]
[1734205823181,20.0,218.18,218.1,8.88115212]
[1734205823492,20.0,218.18,218.11,8.88115212]
[1734205824255,28.12747439,218.21,218.13,8.88115212]
[1734205824256,20.0,218.2,218.13,8.88115212]
[1734205826290,20.0,218.2,218.14,0.12549]
[1734205827381,20.0,218.22,218.13,0.12549]
[1734205829079,20.0,218.21,218.13,0.12549]
[1734205829470,20.0,218.21,218.08,0.12549]
[1734205829793,20.0,218.21,218.1,8.88115212]
[1734205830095,20.0,218.21,218.1,0.25098]
[1734205830272,20.0,218.21,218.1,9.13213212]
[1734205832504,20.0,218.21,218.1,0.25098]
[1734205832705,20.0,218.2,218.08,0.12549]
[1734205832894,20.0,218.2,218.09,8.88115212]
[1734205833097,20.0,218.2,218.1,0.12549]
[1734205835077,20.0,218.2,218.08,9.13213212]
[1734205835272,20.0,218.2,218.08,0.12549]
[1734205835591,20.0,218.16,218.08,8.88115212]
[1734205837296,20.0,218.16,218.01,1.5989]
[1734205837503,20.0,218.12,218.03,8.88115212]
[1734205838183,20.0,218.15,218.04,9.00664212]
[1734205838501,20.0,218.15,218.05,8.88115212]
[1734205838889,21.6482,218.16,218.05,8.88115212]
[1734205839076,43.776884,218.15,218.05,8.88115212]
[1734205839697,6.4634,218.14,218.03,0.12549]
[1734205839891,20.0,218.11,218.03,0.12549]
[1734205841001,20.0,218.11,217.96,23.776884]
[1734205841188,20.0,218.11,218.02,0.12549]
[1734205843330,20.0,218.11,218.02,8.88115212]
[1734205843797,20.0,218.11,217.99,6.5149]
[1734205843798,20.0,218.11,218.04,8.88115212]
[1734205845182,20.0,218.11,218.03,8.88115212]